Cogmind - Beta 14 @@@ ROGUE MODE // 2024.11.09 @ 08:40:46 Player: Fangrelle Result: Destroyed by H-66 Slayer with Heavy Assault Rifle Performance ------------- Evolutions (5) 2500 Regions Visited (6) 1200 Robots Destroyed (33) 165 Value Destroyed (1078) 1078 Prototype IDs (14) 280 Alien Tech Used (0) 0 Bonus (300) 300 TOTAL SCORE: 5523 Bonus ------- Registered with UFD 300 Cogmind --------- Core Integrity 0/1000 Matter 169/300 Energy 100/100 System Corruption 3% Temperature Cool (0) Movement Core (1400) Ox27 Location -5/Factory Parts ------- > --- POWER (1) -------- (None) > --- PROPULSION (2) --- Antigrav System > --- UTILITY (12) ----- Huge Storage Unit Targeting Computer > --- WEAPON (2) ------- Companion Sword > --- INVENTORY (25) --- Scrap Suit Scrap Suit Scrap Suit Energy Well (350) Compact Matter Pod (0) Power Bank Improved Datajack Improved Remote Datajack CPS Tube (2) CPS Tube (2) CPS Tube (2) CPS Tube (2) CPS Tube (2) CPS Tube (2) CPS Tube (2) CPS Tube (2) Botcube Peak State ------------ > --- POWER ------------ Improved Deuterium Engine > --- PROPULSION ------- Antigrav System Cooled Gravmag System > --- UTILITY ---------- Huge Storage Unit Deep Structural Scanner Scrap Shield Makeshift Hacking Suite Dynamic Insulation System Mapping Drone Bay > --- WEAPON ----------- Gatling Laser Ripper > --- INVENTORY -------- Scrap Suit Scrap Suit Scrap Suit Energy Well Compact Matter Pod Scrapoid Pod Power Bank KE Penetrator Improved Datajack CPS Tube CPS Tube CPS Tube CPS Tube CPS Tube CPS Tube CPS Tube CPS Tube Companion Sword Botcube [Rating: 58] Favorites ----------- Power Improved Deuterium Engine Engine Improved Deuterium Engine Power Core Micro Fission Core Propulsion Light Treads Treads Light Treads Leg Overtuned Titanium Leg Wheel Armored Huge Wheel Hover Unit Antigrav System Utility Huge Storage Unit Device Deep Structural Scanner Storage Huge Storage Unit Processor Targeting Computer Hackware Makeshift Hacking Suite Protection Medium Armor Plating Weapon Gatling Laser Energy Gun Gatling Laser Energy Cannon Subdweller Beam Cannon Ballistic Gun Heavy Assault Rifle Ballistic Cannon Flak Cannon Launcher EMP Blaster Slashing Weapon Ripper Build | -11 -10 -10 -10 -7 -7 -5 ------- Run | Yrd Mat Min Sub Rec Scr Fac Slots Evolved 10 | . . . . . . 10 Power . | . . . . . . . Propulsion . | . . . . . . . Utility 10 | . . . . . . 10 Weapon . | . . . . . . . Parts Attached 74 | 5 9 1 20 1 23 15 Power 9 | . 2 . 3 . 3 1 Engine 8 | . 2 . 3 . 3 . Core 1 | . . . . . . 1 Reactor . | . . . . . . . Propulsion 19 | 2 1 . 6 . 5 5 Treads 6 | 2 1 . 3 . . . Leg 2 | . . . . . 2 . Wheel 7 | . . . 3 . 3 1 Hover 4 | . . . . . . 4 Flight . | . . . . . . . Utility 19 | 1 2 . 5 1 5 5 Device 4 | . . . . . 1 3 Storage 4 | 1 1 . 1 . 1 . Processor 1 | . . . . . . 1 Hackware 1 | . . . . . 1 . Protection 9 | . 1 . 4 1 2 1 Artifact . | . . . . . . . Weapon 27 | 2 4 1 6 . 10 4 Energy Gun 6 | 2 2 . . . 2 . Energy Cannon 2 | . . . 1 . 1 . Ballistic Gun 9 | . 2 1 4 . . 2 Ballistic Cannon 3 | . . . 1 . 2 . Launcher 1 | . . . . . 1 . Special Weapon . | . . . . . . . Impact Weapon . | . . . . . . . Slashing Weapon 6 | . . . . . 4 2 Piercing Weapon . | . . . . . . . Special Melee Weapon . | . . . . . . . Unidentified Prototypes 3 | . 1 . . . . 2 Parts Lost 23 | . 3 1 5 . . 14 Power 4 | . 2 . . . . 2 Propulsion 7 | . 1 . 3 . . 3 Utility 7 | . . . 2 . . 5 Weapon 5 | . . 1 . . . 4 Highest Loss Streak 12 | . 3 1 2 . . 12 To Critical Strikes . | . . . . . . . Average Slot Usage (%) 83 | . 80 84 88 100 85 55 Engine 11 | . 5 . 12 14 13 4 Treads 7 | . 21 28 12 28 . . Leg 1 | . . . . . 3 . Wheel 8 | . . . 11 . 11 . Device 1 | . . . . . . 14 Storage 13 | . 17 14 12 14 13 5 Hackware 5 | . . . . . 9 4 Protection 6 | . 6 14 9 14 4 4 Energy Gun 6 | . 18 3 . . 9 4 Energy Cannon 3 | . . . 7 14 1 . Ballistic Gun 7 | . 9 24 15 14 1 . Ballistic Cannon 2 | . . . 5 . 2 . Slashing Weapon 6 | . . . . . 12 4 Peak Build Rating 58 | 5 9 10 17 17 35 58 Average Rating 24 | 4 6 9 14 17 31 49 On Entrance 13 | . 5 9 10 15 17 35 Naked Turns . | . . . . . . . Heaviest Build 121 | 9 92 92 103 103 109 121 Greatest Support 40 | 40 40 40 40 40 40 28 Greatest Overweight (x) 40 | . 4 2 6 2 32 40 Average Overweight (x) 2 | . 1 2 2 2 3 6 Largest Inventory Capacity 25 | 8 25 25 25 25 25 25 Average Capacity 23 | 7 20 25 22 25 24 25 Most Carried 25 | 4 14 17 23 22 25 24 Average Carried 19 | 2 7 15 16 22 23 22 Final Capacity 25 | 8 25 25 25 25 25 25 Final Carried 25 | 4 14 16 23 22 25 20 Class Distribution -------------------- 48% | Derelict-Mutant 47% | Mutant 3% | Subdweller-Mutant Dominant Class ---------------- Mutant | -10/Materials Mutant | -10/Mines Mutant | -10/Subcaves Mutant | -7/Recycling Derelict-Mutant | -7/Scraptown Derelict-Mutant | -5/Factory Resources | -11 -10 -10 -10 -7 -7 -5 ----------- Run | Yrd Mat Min Sub Rec Scr Fac Matter Collected 1294 | 223 104 48 652 . 144 123 Remotely . | . . . . . . . Salvage Created 1204 | . 578 86 379 . . 161 Parts 64 | . 28 2 25 . . 9 Haulers Intercepted 1 | . 1 . . . . . Recyclers Shooed 2 | . . . . . . 2 Parts Field Recycled . | . . . . . . . Retrieved Matter . | . . . . . . . Parts Self-Destructed 11 | . . . 11 . . . Prevented . | . . . . . . . Kills | -11 -10 -10 -10 -7 -7 -5 ------- Run | Yrd Mat Min Sub Rec Scr Fac Combat Hostiles Destroyed 26 | . 12 2 9 . . 3 Melee 2 | . . . . . . 2 Guns 19 | . 12 2 4 . . 1 Cannons 5 | . . . 5 . . . Classes Destroyed 12 | . 6 . 3 . . 3 Worker 1 | . 1 . . . . . Builder 1 | . . . . . . 1 Hauler 1 | . 1 . . . . . Operator 1 | . 1 . . . . . Turret 2 | . . . 2 . . . Watcher 1 | . 1 . . . . . Swarmer 4 | . 3 . 1 . . . Grunt 12 | . 9 2 1 . . . Sentry 1 | . . . 1 . . . Hunter 1 | . . . . . . 1 Programmer 2 | . . . . . . 2 Subdweller 6 | . . . 6 . . . Best Kill Streak 5 | . 5 2 2 . . 2 Combat Bots Only 4 | . 4 2 2 . . 1 Max Kills in Single Turn 1 | . 1 1 1 . . 1 Gunslinging . | . . . . . . . Exploded . | . . . . . . . Melee 1 | . . . . . . 1 Uniques/NPCs Destroyed . | . . . . . . . Combat | -11 -10 -10 -10 -7 -7 -5 -------- Run | Yrd Mat Min Sub Rec Scr Fac Hostile Shots Fired 333 | . 76 11 63 . . 183 Missed 56 | . 15 3 11 . . 27 Damage Taken 4326 | . 746 107 889 . . 2584 Core 1257 | . 126 26 97 . . 1008 Absorbed by Shields . | . . . . . . . Core Remaining (%) 50 | 100 . . . . . . Volleys Fired 147 | . 63 7 48 6 . 23 Largest 2 | . 2 2 2 1 . 2 Hottest 119 | . 100 60 119 80 . 113 Shots Fired 243 | . 109 13 88 6 . 27 Gun 210 | . 109 13 61 . . 27 Cannon 33 | . . . 27 6 . . Launcher . | . . . . . . . Special . | . . . . . . . Kinetic 143 | . 41 10 76 . . 16 Thermal 77 | . 48 . 12 6 . 11 Explosive . | . . . . . . . Electromagnetic 23 | . 20 3 . . . . Robot Hit Streak 13 | . 7 9 13 . . 12 Robot Miss Streak 4 | . 3 1 4 . . 2 Penetration Max 1 | . . . . . . 1 Secondary Targets 3 | . 2 . 1 . . . Max Gunslinging Chain 1 | . 1 . 1 . . . Shots Hit Robots 154 | . 64 10 52 . . 28 Core Hits 71 | . 28 6 19 . . 18 Critical Kills 2 | . . . 2 . . . Critical Parts Destroyed 1 | . 1 . . . . . Critical Strikes 6 | . 4 . 2 . . . Burn 2 | . 2 . . . . . Meltdown 1 | . . . 1 . . . Destroy 2 | . 1 . 1 . . . Corrupt 1 | . 1 . . . . . Melee Attacks 35 | . . . . . . 35 Impact . | . . . . . . . Slashing 35 | . . . . . . 35 Piercing . | . . . . . . . Sneak Attacks 1 | . . . . . . 1 Combat Hostiles . | . . . . . . . Follow-up Attacks . | . . . . . . . Damage Inflicted 2846 | . 937 137 897 . . 875 Guns 2144 | . 876 137 565 . . 566 Cannons 332 | . . . 332 . . . Explosions 61 | . 61 . . . . . Melee 309 | . . . . . . 309 Ramming . | . . . . . . . Kinetic 1399 | . 353 124 649 . . 273 Thermal 954 | . 413 . 248 . . 293 Explosive . | . . . . . . . Electromagnetic 184 | . 171 13 . . . . Impact . | . . . . . . . Slashing 309 | . . . . . . 309 Piercing . | . . . . . . . Highest Corruption 3 | . 1 1 1 1 . 3 Average Corruption 1 | . 1 1 1 1 . 2 Corruption Purged . | . . . . . . . Corruption Blocked . | . . . . . . . Effects 43 | . 4 3 26 7 . 3 Message Errors 13 | . 1 1 8 3 . . Matter Fused 10 | . 2 1 5 2 . . Heat Flow Errors 4 | . . . 3 1 . . Energy Discharges 2 | . . . 2 . . . Parts Fused 2 | . . . . 1 . 1 Data Loss (minor) 7 | . . 1 5 . . 1 Data Loss (major) 2 | . 1 . . . . 1 Misfires 1 | . . . 1 . . . Alerts 1 | . . . 1 . . . Weapon Failures 1 | . . . 1 . . . Overload Shots . | . . . . . . . Overflow Damage 24 | . 6 . 10 . . 8 Projectiles 10 | . . . 10 . . . Explosions 6 | . 6 . . . . . Melee 8 | . . . . . . 8 Knockbacks 2 | . . . 2 . . . Impact . | . . . . . . . Kinetic 2 | . . . 2 . . . Secondary . | . . . . . . . Self-Inflicted Damage . | . . . . . . . Shots . | . . . . . . . Rammed . | . . . . . . . Targets Rammed . | . . . . . . . Kicked . | . . . . . . . Crushed . | . . . . . . . Highest Temperature 317 | . 317 17 203 184 . 44 Average Temperature 92 | . 115 7 64 79 . 20 Received Heat Transfer 636 | . 405 60 159 . . 12 Effects 1 | . 1 . . . . . Interference 1 | . 1 . . . . . Siege Activations . | . . . . . . . Robots Corrupted . | . . . . . . . Combat Hostiles . | . . . . . . . Parts Fried 1 | . 1 . . . . . Impact Corruptions . | . . . . . . . Robots Melted 1 | . . . 1 . . . Combat Hostiles . | . . . . . . . Parts Melted 3 | . 2 . . . . 1 Heat Transferred 2217 | . 1284 . 333 . . 600 Parts Sabotaged . | . . . . . . . Parts Stolen . | . . . . . . . Parts Stripped . | . . . . . . . Power Chain Reactions 2 | . 2 . . . . . Alert | -11 -10 -10 -10 -7 -7 -5 ------- Run | Yrd Mat Min Sub Rec Scr Fac Peak Influence 171 | . 171 62 . 24 . 58 Initial 22 | . . 22 . 12 . . Average 30 | . 42 33 . 11 . 26 Maximum Alert Level . | . . . . . . . Low Security (%) 100 | 100 100 100 . 100 . 100 Level 1 . | . . . . . . . Level 2 . | . . . . . . . Level 3 . | . . . . . . . Level 4 . | . . . . . . . Level 5 . | . . . . . . . High Security . | . . . . . . . Max Security . | . . . . . . . Squads Dispatched 6 | . 3 . . . . 3 Investigation . | . . . . . . . Extermination 2 | . . . . . . 2 Reinforcement 4 | . 3 . . . . 1 Assault . | . . . . . . . Garrison . | . . . . . . . Intercept . | . . . . . . . Searches Triggered . | . . . . . . . Construction Impeded . | . . . . . . . Haulers Reinforced . | . . . . . . . Active Scanning Responses . | . . . . . . . Cargo Convoy Interrupts . | . . . . . . . Stealth | -11 -10 -10 -10 -7 -7 -5 --------- Run | Yrd Mat Min Sub Rec Scr Fac Distress Signals 4 | . 3 . . . . 1 Communications Jammed . | . . . . . . . Distress Signals . | . . . . . . . Times Spotted 44 | . 19 2 13 . . 10 Peak Tracking Total 4 | . 4 2 2 . . 4 Tactical Retreats 2 | . . . 2 . . . Traps | -11 -10 -10 -10 -7 -7 -5 ------- Run | Yrd Mat Min Sub Rec Scr Fac Traps Triggered 2 | . 1 . 1 . . . Indirectly . | . . . . . . . Trap Hack Attempts . | . . . . . . . Triggered . | . . . . . . . Disarmed . | . . . . . . . Reprogrammed . | . . . . . . . Reused . | . . . . . . . Traps Extracted . | . . . . . . . Installed . | . . . . . . . Triggered . | . . . . . . . Machines | -11 -10 -10 -10 -7 -7 -5 ---------- Run | Yrd Mat Min Sub Rec Scr Fac Machines Disabled 3 | . . . 3 . . . Max in Single Turn 1 | . . . 1 . . . Machines Repaired . | . . . . . . . Machines Dismantled . | . . . . . . . Machines Sabotaged . | . . . . . . . Overloaded Fab Kills . | . . . . . . . Hacking | -11 -10 -10 -10 -7 -7 -5 --------- Run | Yrd Mat Min Sub Rec Scr Fac Machines Accessed 17 | . 3 . 1 5 6 2 Terminals 6 | . 3 . . 1 . 2 Fabricators . | . . . . . . . Repair Stations . | . . . . . . . Recycling Units 2 | . . . . 2 . . Scanalyzers . | . . . . . . . Garrison Access . | . . . . . . . Total Hacks 102 | . 14 . 9 30 45 4 Successful 90 | . 6 . 9 26 45 4 Failed 12 | . 8 . . 4 . . Catastrophic 3 | . 1 . . 2 . . Database Lockouts . | . . . . . . . Manual 20 | . 14 . . 2 . 4 Terminals 20 | . 14 . . 2 . 4 Fabricators . | . . . . . . . Repair Stations . | . . . . . . . Recycling Units 3 | . . . . 3 . . Scanalyzers . | . . . . . . . Garrison Access . | . . . . . . . Terminal Hacks 81 | . 1 . 9 26 45 . Record 76 | . . . 8 24 44 . Open Door 1 | . . . . . 1 . Branch Access Points 1 | . . . . 1 . . Terminal Index 1 | . 1 . . . . . Derelict Proto ID Bank 1 | . . . 1 . . . Release Object 1 | . . . . 1 . . Fabricator Hacks . | . . . . . . . Repair Station Hacks . | . . . . . . . Recycling Unit Hacks . | . . . . . . . Scanalyzer . | . . . . . . . Garrison Access Hacks . | . . . . . . . Unauthorized Hacks 9 | . 5 . . . . 4 Terminals 9 | . 5 . . . . 4 Assimilate 2 | . 2 . . . . . Botnet 5 | . 3 . . . . 2 Skim 2 | . . . . . . 2 Fabricators . | . . . . . . . Repair Stations . | . . . . . . . Recycling Units . | . . . . . . . Scanalyzers . | . . . . . . . Garrison Access . | . . . . . . . Data Cores Recovered . | . . . . . . . Used . | . . . . . . . Hacking Detections 8 | . 3 . . 3 . 2 Full Trace Events 1 | . 1 . . . . . Feedback Events . | . . . . . . . Feedback Blocked . | . . . . . . . Robot Schematics Acquired . | . . . . . . . Robots Built . | . . . . . . . Authchips . | . . . . . . . Time . | . . . . . . . Total Robot Build Rating . | . . . . . . . Part Schematics Acquired . | . . . . . . . Parts Built . | . . . . . . . Authchips . | . . . . . . . Time . | . . . . . . . Total Part Build Rating . | . . . . . . . Parts Repaired . | . . . . . . . Time . | . . . . . . . Parts Recycled . | . . . . . . . Recycled Matter . | . . . . . . . Retrieved Matter . | . . . . . . . Retrieved Components . | . . . . . . . Parts Scanalyzed . | . . . . . . . Part Schematics Acquired . | . . . . . . . Parts Damaged . | . . . . . . . Bothacking | -11 -10 -10 -10 -7 -7 -5 ------------ Run | Yrd Mat Min Sub Rec Scr Fac Used RIF Installer . | . . . . . . . Robots Hacked . | . . . . . . . Non-combat . | . . . . . . . Combat . | . . . . . . . Robot Hacks Applied . | . . . . . . . Relay Couplers Released . | . . . . . . . Fabnet Peak Effective % . | . . . . . . . Robots Rewired . | . . . . . . . Allies Hacked . | . . . . . . . Hacks Repelled . | . . . . . . . Allies | -11 -10 -10 -10 -7 -7 -5 -------- Run | Yrd Mat Min Sub Rec Scr Fac Total Allies . | . . . . . . . Largest Group . | . . . . . . . Highest-Rated Group . | . . . . . . . Highest-Rated Ally . | . . . . . . . Total Orders . | . . . . . . . Ally Attacks . | . . . . . . . Total Damage . | . . . . . . . Kills . | . . . . . . . Allies Corrupted . | . . . . . . . Allies Melted . | . . . . . . . Intel | -11 -10 -10 -10 -7 -7 -5 ------- Run | Yrd Mat Min Sub Rec Scr Fac Robot Analysis Total . | . . . . . . . Derelict Logs Recovered 3 | . . . . . 3 . Drone Launches 5 | . . . . . . 5 Drone Recoveries 2 | . . . . . . 2 Exploration | -11 -10 -10 -10 -7 -7 -5 ------------- Run | Yrd Mat Min Sub Rec Scr Fac Turns Passed 11717 | 91 1194 559 2681 523 5659 1010 Spaces Moved 5575 | 54 333 115 1265 151 3458 199 Core 143 | 5 . . . . 129 9 Treads 1092 | 49 333 115 416 151 28 . Legs 143 | . . . . . 143 . Wheels 4045 | . . . 849 . 3158 38 Hover 152 | . . . . . . 152 Flight . | . . . . . . . Fastest Speed 50 | 50 160 320 129 340 50 160 Average Speed 191 | 149 295 320 196 340 158 378 Slowest Speed 2050 | 160 480 320 480 340 1650 2050 Overloaded Moves . | . . . . . . . Propulsion Burnouts . | . . . . . . . Robots Hopped . | . . . . . . . Cave-ins Triggered . | . . . . . . . Exploration Rate (%) 38 | 4 51 22 62 32 93 6 Regions Visited 6 Branch Regions 4 Pre-discovered Areas 6 | . . . . . 6 . Known Exits Taken . | . . . . . . . Unknown Exits Taken 6 | 1 1 1 1 1 1 . Scrap Searched 18 | . . 1 8 . 9 . Spaces Dug 28 | . . . . 6 . 22 Terrain Destroyed 34 | . 4 . 2 6 . 22 Melee 22 | . . . . . . 22 Projectile 8 | . . . 2 6 . . AOE 4 | . 4 . . . . . Terrain Rammed . | . . . . . . . Walls Destroyed . | . . . . . . . Machines Disabled . | . . . . . . . Actions | -11 -10 -10 -10 -7 -7 -5 --------- Run | Yrd Mat Min Sub Rec Scr Fac Total 6373 | 62 436 295 1379 157 3663 381 Wait 308 | . 16 170 4 . 18 100 Move 5569 | 53 332 114 1264 150 3457 199 Hop . | . . . . . . . Pick Up 135 | 4 12 3 29 . 81 6 Fast Attach 39 | 5 6 . 10 . 13 5 Attach 26 | . 2 1 6 1 7 9 Detach 2 | . . . . . 1 1 Swap 9 | . 1 . 4 . 3 1 Drop 102 | . 4 . 14 . 82 2 Fire 147 | . 63 7 48 6 . 23 Melee 35 | . . . . . . 35 Ram . | . . . . . . . Kick . | . . . . . . . Crush . | . . . . . . . Escape Stasis . | . . . . . . . Rewire 1 | . . . . . 1 . Trap . | . . . . . . . Miscellaneous . | . . . . . . . Route ------- -11/Scrapyard -10/Materials (discovered 2 exits: [*Mat] / [*Min]) -10/Mines (discovered 2 exits: [*Mat] / *Sub) -10/Subcaves (discovered 3 exits: [*Mat x2] / *Rec) -7/Recycling -7/Scraptown (discovered 2 exits: *Fac x2) -5/Factory (discovered 4 exits: Fac x3 / [*Ext]) History --------- Turn | Location | Event 7 | -11/Scrapyard | Discovered new exit (range 13) 92 | -11/Scrapyard | Entered Materials 303 | -10/Materials | Build established: Mutant 567 | -10/Materials | Lost 3 parts (2p1n) 778 | -10/Materials | Discovered new exit (range 15) 811 | -10/Materials | Core integrity fell below 50% 1273 | -10/Materials | Discovered new exit (range 5) 1286 | -10/Materials | Entered Mines 1530 | -10/Mines | Discovered new exit (range 6) 1820 | -10/Mines | Discovered new exit (range 5) 1845 | -10/Mines | Entered Subcaves 2106 | -10/Subcaves | Core integrity fell below 20% 2181 | -10/Subcaves | Discovered new exit (range 14) 2402 | -10/Subcaves | Visited 4L-MR0's lab 2422 | -10/Subcaves | Found Power Bank 2590 | -10/Subcaves | Discovered new exit (range 6) 3663 | -10/Subcaves | Build established: Subdweller-Mutant 3711 | -10/Subcaves | Discovered new exit (range 8) 4034 | -10/Subcaves | Build established: Mutant 4526 | -10/Subcaves | Entered Recycling 4968 | -7/Recycling | Scanned before Scraplab entrance 5015 | -7/Recycling | Entered Scraplab 5043 | -7/Recycling | Discovered new exit (range 3) 5049 | -7/Recycling | Entered Scraptown 5049 | -7/Scraptown | System corruption cleaned by C-Scrubber 5449 | -7/Scraptown | Discovered new exit (range 13) 5500 | -7/Scraptown | Visited Spacefarers 5524 | -7/Scraptown | Visited Fellowship of the Rings 5556 | -7/Scraptown | Visited CR-KLE's Repair Center 5595 | -7/Scraptown | Visited UFD Registry 5595 | -7/Scraptown | Registered with UFD as "Armorface" 5632 | -7/Scraptown | Visited LU-1G1's Boring Crew 5656 | -7/Scraptown | Visited DA-N13 Charitable Foundation 5674 | -7/Scraptown | Found DCF Scrap (29 items) 5760 | -7/Scraptown | Visited Curators Association 5782 | -7/Scraptown | Visited Junk Repository 5877 | -7/Scraptown | Delivered Scrap Shield to a Scientist 5951 | -7/Scraptown | Build established: Derelict-Mutant 6049 | -7/Scraptown | Visited Scrapoid Pod Storage 6057 | -7/Scraptown | Found Scrapoid Pod 6087 | -7/Scraptown | Visited Abandonware Association 6116 | -7/Scraptown | Learned abandonware demo "REPAIR.EXE" 6140 | -7/Scraptown | Visited Cartography Club 6264 | -7/Scraptown | Visited Botcube Research 6270 | -7/Scraptown | Found Botcube 6303 | -7/Scraptown | Visited Sword Containment 6342 | -7/Scraptown | Visited Scrapoid Research Area 6495 | -7/Scraptown | Visited CPS Storage 6647 | -7/Scraptown | Visited Comm Corps 6756 | -7/Scraptown | Visited Bundlers 7855 | -7/Scraptown | Scanned Subdweller tech in exchange for log data 7859 | -7/Scraptown | Learned Research stockpile data 7862 | -7/Scraptown | Learned Research non-interactive machine intel 8498 | -7/Scraptown | Found Scrap Suit 8574 | -7/Scraptown | Discovered new exit (range 5) 8811 | -7/Scraptown | Visited Red Mages 9660 | -7/Scraptown | Guru changed UFD alias to "Laserbox" 10321 | -7/Scraptown | Learned location of Lower Caves (-6) 10321 | -7/Scraptown | Learned location of Extension (-5) 10321 | -7/Scraptown | Learned location of Archives (-5) 10321 | -7/Scraptown | Learned 16 Factory zone layouts 10321 | -7/Scraptown | Learned 12 Research zone layouts 10321 | -7/Scraptown | Learned 16 Research zone layouts 10321 | -7/Scraptown | Learned 8 Access zone layouts 10321 | -7/Scraptown | Learned 8 Lower Caves zone layouts 10321 | -7/Scraptown | Learned 16 Lower Caves zone layouts 10321 | -7/Scraptown | Learned 24 Upper Caves zone layouts 10321 | -7/Scraptown | Learned 8 Proximity Caves zone layouts 10321 | -7/Scraptown | Learned 12 Proximity Caves zone layouts 10321 | -7/Scraptown | Learned 20 Proximity Caves zone layouts 10321 | -7/Scraptown | Learned Factory emergency access door positions 10321 | -7/Scraptown | Learned location of 1 exit from Research 10321 | -7/Scraptown | Learned location of 2 exits from Upper Caves 10326 | -7/Scraptown | Found Deep Structural Scanner 10626 | -7/Scraptown | Found Scrap Suit 10639 | -7/Scraptown | Found Scrap Suit 10708 | -7/Scraptown | Entered Factory 10708 | -5/Factory | Evolved 10 slots: Utility x10 10709 | -5/Factory | Identified exit to Factory 11374 | -5/Factory | Discovered new exit (range 15) 11576 | -5/Factory | Core integrity fell below 50% 11601 | -5/Factory | Core integrity fell below 20% 11631 | -5/Factory | Lost 12 parts (2p2n5u3w) 11718 | -5/Factory | Destroyed by H-66 Slayer with Heavy Assault Rifle Last Messages --------------- Companion Sword: "Maybe you need a rocket booster companion instead of me." 11668_ K-01 Serf collects debris. 11682_ W-25 Informer sends out distress signal. 11686_ System corrupted: Gauss Rifle fused. Companion Sword: "I'm really excited about what the future may hold for us." 11692_ Slug penetrates Wall. 11695_ Penetrated by Slug. 11701_ Slug penetrates Wall. 11702_ Penetrated by Slug. 11703_ Slug penetrates Wall. 11705_ Penetrated by Slug. 11705_ Slug penetrates H-66 Slayer. 11708_ ALERT: Rogue bot located, Programmers report to Factory Zone 9W. 11708_ Penetrated by Slug. 11708_ Gauss Rifle destroyed. 11708_ Slug penetrates Wall. 11711_ Wheel destroyed. 11711_ Penetrated by Slug. 11715_ Slug penetrates Wall. 11715_ Penetrated by Slug. Map ----- +----------------------------------------------------+ | ????????????###############??????????????????????? | | ????????#?###############???# ???????????????????? | | ??????? ??###############??##???"????????????????? | | ?????? ##??#### ####?###????????????????????? | | ????? ??#?###### #####??# ?????????????????? | | ???? ? ######## < ######## ? ????????????????? | | ??????? ######## ########??##????????????????? | | ??? ?? ######## #######?#?#?????????????????? | | ??? ? ? ######## #######?###??? ?????????????? | | ??#+#######""""" """""######?##? ????????????? | | ? ########### ##########??# ?????????????? | | ?? #####"""""""" """"""""####??#??????????????? | | ? ########## T#######?######? ????????????? | | ???? #?######### ############### ????????????? | | ?? ###?#?####### #############?# ????????????? | | ? ####?######## #####?######### ?????????????? | | ? ??############# ##############?? ????????????? | | ##?####?##### ###############??????????????? | | ? ######## ############### ?????????????? | | ?####### ###############?? ?????????? | | ? ##?#### ############## ?????????? | | ###+######## #????????? | | ?" # ##% ! ????????? | | "" # """"" ## !% ????????? | | T" + """?" ## #### ####### ?????????????? | | "" # """ ###########@ # # ?????????????? | | "" # ## # # "" # ?????????????? | | # ## + + "" # ?????????????? | | ############" "" # # """ #??????????????? | | # ##" """ # h # ""? ???????????????? | | # """"""" ##T """ # # ""??? ?????????????? | | # """"""" ##" "" # # ?????????????????? | | # """"""" ##" "" # # ??? ???????????????? | | # """"""" ##" # #?#??????????????????? | | + ## # #?#??????????????????? | | # !########### ?? ?????????????????? | | # ! !!########### ????????????????????? | | ##################### k ????????????????????? | | ########k##????????????????????? | | ####???? ??????????????????????? | | ####? ?? ??????????????????????? | | ####???????????????????????????? | | ####????????????????????????#### | | #########+### ####???????????????????????? | | # T###???????????????????????? | | """ """ # ###???????????????????????? | | """ """ # ####????????????????????????#### | | """ """ + ??????????????????????????????##?# | | # ?????????????????????????????? #?# | | """ """ # ?????????????????????????????? #?# | +----------------------------------------------------+ Best States ------------- Heat Dissipation 40 Energy Generation 16 Energy Capacity 290 Matter Stores 300 Matter Capacity 300 Sight Range 16 Terrain Scan Density 10 EM Shielding 2 Armor Coverage 800 Evasion (%) 50 Targeting Accuracy 5 Recoil Reduction 2 Offensive Hacking 11 Item Schematics ----------------- None Robot Schematics ------------------ None Fabricated ------------ Nothing Alien Tech Used ----------------- None Achievements -------------- None Challenges ------------ None Game ------ Seed ElectronHybridNukerbomber Manual? 0 Play Time 00:58:16 Cumulative 29.0 hours Start 2024.11.09 @ 07:33:19 End 2024.11.09 @ 08:40:46 Sessions 1 Manual Loads 0 Difficulty Rogue Special Mode None Game No. 59 Rogue 59 Adventurer 0 Explorer 0 Win Type - Total 0 Types 0/0/0/0/0/0/0/0/0 Lore% 24 Gallery% 25 Achievement% 28 Wizard Run 0 Options --------- Layout 0 ASCII 0 Keyboard 0 Movement Mouse Keybinds 0 Fullscreen 1 Font 24/Smallcaps Map View 91x25 Zoom Use 82% Tactical HUD 1 Map Filters NONE Filters NONE Steam 1 RUN: 8b8f24d3-ec9b-4573-b0ee-fade8ea2ba54